Cogmind - Beta 15 @@@ ROGUE MODE // 2025.05.18 @ 18:28:34 Player: Cess183 Result: Destroyed by M2-CN3(R) with Subdweller Beam Cannon Performance ------------- Evolutions (0) 0 Regions Visited (2) 400 Robots Destroyed (28) 140 Value Destroyed (799) 799 Prototype IDs (0) 0 Alien Tech Used (0) 0 Bonus (0) 0 TOTAL SCORE: 1339 Bonus ------- None Cogmind --------- Core Integrity 0/250 Matter 265/300 Energy 68/250 System Corruption 0% Temperature Cool (15) Movement Treading (240) Ox1 Location -10/Subcaves Parts ------- > --- POWER (1) -------- Ion Engine > --- PROPULSION (2) --- Light Treads Improved Aluminum Leg > --- UTILITY (2) ------ Large Storage Unit Subdweller Optics > --- WEAPON (2) ------- Subdweller Laser Subdweller Machine Gun > --- INVENTORY (15) --- Subdweller Monowheel Subdweller Monowheel Subdweller Optics Signal Interpreter Scrap Shield Subdweller Laser Subdweller Shrapnel Launcher Dirty Datajack (20) Plasma Cutter Flamer Scrap Shield Fragment (47) Scrap Shield Fragment (47) Scrap Shield Fragment (47) Peak State ------------ > --- POWER ------------ Light Nuclear Core > --- PROPULSION ------- Subdweller Monowheel Subdweller Monowheel > --- UTILITY ---------- Large Storage Unit Subdweller Optics > --- WEAPON ----------- Subdweller Laser Subdweller Laser > --- INVENTORY -------- Ion Engine Light Ion Engine Light Treads Improved Aluminum Leg Subdweller Optics Signal Interpreter Scrap Shield Subdweller Laser Subdweller Shrapnel Launcher Dirty Datajack Plasma Cutter Scrap Shield Fragment Scrap Shield Fragment Scrap Shield Fragment [Rating: 17] Favorites ----------- Power Light Nuclear Core Engine Light Ion Engine Power Core Light Nuclear Core Propulsion Subdweller Monowheel Treads Light Treads Leg Improved Aluminum Leg Wheel Subdweller Monowheel Utility Large Storage Unit Device Seismic Detector Storage Large Storage Unit Protection Medium Armor Plating Weapon Assault Rifle Energy Gun Subdweller Laser Energy Cannon Subdweller Beam Cannon Ballistic Gun Assault Rifle Build | -11 -10 -10 ------- Run | Yrd Mat Sub Slots Evolved . | . . . Power . | . . . Propulsion . | . . . Utility . | . . . Weapon . | . . . Parts Attached 32 | 7 7 18 Power 4 | 1 1 2 Engine 2 | 1 . 1 Core 2 | . 1 1 Reactor . | . . . Propulsion 10 | 2 2 6 Treads 2 | 2 . . Leg 4 | . 2 2 Wheel 4 | . . 4 Hover . | . . . Flight . | . . . Utility 8 | 2 2 4 Device 4 | 1 1 2 Storage 2 | 1 1 . Processor . | . . . Hackware . | . . . Protection 2 | . . 2 Artifact . | . . . Weapon 10 | 2 2 6 Energy Gun 4 | . . 4 Energy Cannon 1 | . . 1 Ballistic Gun 5 | 2 2 1 Ballistic Cannon . | . . . Launcher . | . . . Special Weapon . | . . . Impact Weapon . | . . . Slashing Weapon . | . . . Piercing Weapon . | . . . Special Melee Weapon . | . . . Unidentified Prototypes . | . . . Parts Lost 9 | . 1 8 Power 1 | . . 1 Propulsion 3 | . 1 2 Utility 2 | . . 2 Weapon 3 | . . 3 Highest Loss Streak 4 | . 1 4 To Critical Strikes 1 | . . 1 Average Backups 9 | 1 7 11 Power 1 | . 2 1 Propulsion 1 | . . 2 Utility 2 | . 1 3 Weapon 2 | . 1 3 Tool/Special . | . . . Unused Backups 18 | 1 3 14 Power 2 | . 2 . Propulsion . | . . . Utility 5 | . . 5 Weapon 9 | 1 1 7 Tool/Special 2 | . . 2 Average Slot Usage (%) 97 | . 99 97 Engine 3 | . 9 . Core 10 | . 4 13 Treads 8 | . 21 . Leg 7 | . 5 8 Wheel 11 | . . 19 Device 11 | . 13 10 Storage 14 | . 14 14 Protection 1 | . . 2 Energy Gun 7 | . . 11 Energy Cannon 1 | . . 1 Ballistic Gun 18 | . 28 12 Peak Build Rating 17 | 7 15 17 Average Rating 12 | 6 9 16 On Entrance 7 | . 7 15 Naked Turns . | . . . Heaviest Build 44 | 13 32 44 Greatest Support 40 | 40 40 40 Greatest Overweight (x) 11 | 1 2 11 Average Overweight (x) . | . . 1 Largest Inventory Capacity 15 | 8 15 15 Average Capacity 12 | 7 9 15 Most Carried 15 | 4 15 15 Average Carried 11 | 1 7 14 Final Capacity 15 | 8 15 15 Final Carried 15 | 3 15 14 Class Distribution -------------------- 59% | Mutant 40% | Scavenger-Mutant Dominant Class ---------------- Mutant | -10/Materials Scavenger-Mutant | -10/Subcaves Resources | -11 -10 -10 ----------- Run | Yrd Mat Sub Matter Collected 839 | 396 210 233 Remotely . | . . . Salvage Created 1165 | 192 430 543 Parts 63 | 16 18 29 Haulers Intercepted . | . . . Recyclers Shooed 1 | . 1 . Parts Field Recycled . | . . . Retrieved Matter . | . . . Parts Self-Destructed . | . . . Prevented . | . . . Kills | -11 -10 -10 ------- Run | Yrd Mat Sub Combat Hostiles Destroyed 18 | . 8 10 Guns 16 | . 8 8 Cannons 2 | . . 2 Classes Destroyed 6 | 3 2 1 Worker 2 | 2 . . Tunneler 5 | 5 . . Recycler 1 | 1 . . Watcher 2 | . 2 . Grunt 8 | . 8 . Subdweller 10 | . . 10 Best Kill Streak 3 | 3 2 2 Combat Bots Only 2 | . 2 2 Max Kills in Single Turn 1 | 1 1 1 Gunslinging . | . . . Exploded . | . . . Melee . | . . . Uniques/NPCs Destroyed . | . . . Combat | -11 -10 -10 -------- Run | Yrd Mat Sub Hostile Shots Fired 104 | . 38 66 Missed 23 | . 11 12 Hits 81 | . 27 54 Projectile 81 | . 27 54 Critical Strikes 4 | . . 4 Damage Taken 1802 | . 413 1389 Core 271 | . 95 176 Absorbed by Shields . | . . . Core Remaining (%) 100 | 100 . . Volleys Fired 95 | 21 27 47 Largest 2 | 2 2 2 Hottest 140 | 40 40 140 Shots Fired 180 | 42 54 84 Gun 170 | 42 54 74 Cannon 10 | . . 10 Launcher . | . . . Special . | . . . Kinetic 123 | 42 54 27 Thermal 57 | . . 57 Explosive . | . . . Electromagnetic . | . . . Robot Hit Streak 19 | 7 12 19 Robot Miss Streak 5 | 2 5 4 Penetration Max . | . . . Secondary Targets . | . . . Shots Hit Robots 137 | 30 38 69 Core Hits 58 | 9 22 27 Critical Kills 1 | . . 1 Critical Parts Destroyed 1 | 1 . . Critical Strikes 2 | 1 . 1 Destroy 2 | 1 . 1 Melee Attacks . | . . . Impact . | . . . Slashing . | . . . Piercing . | . . . Sneak Attacks . | . . . Combat Hostiles . | . . . Follow-up Attacks . | . . . Damage Inflicted 2367 | 416 501 1450 Guns 2126 | 416 484 1226 Cannons 224 | . . 224 Explosions . | . . . Melee . | . . . Ramming 17 | . 17 . Kinetic 1347 | 416 484 447 Thermal 1003 | . . 1003 Explosive . | . . . Electromagnetic . | . . . Impact . | . . . Slashing . | . . . Piercing . | . . . Highest Corruption . | . . . Average Corruption . | . . . Corruption Purged . | . . . Corruption Blocked . | . . . Overload Shots . | . . . Overflow Damage . | . . . Projectiles . | . . . Explosions . | . . . Melee . | . . . Knockbacks . | . . . Impact . | . . . Kinetic . | . . . Secondary . | . . . Self-Inflicted Damage . | . . . Shots . | . . . Rammed 7 | . 7 . Targets Rammed 7 | . 7 . Kicked . | . . . Crushed . | . . . Highest Temperature 276 | . 2 276 Average Temperature 58 | . 2 65 Received Heat Transfer 522 | . 165 357 Siege Activations . | . . . Martial Activations . | . . . Shielding Activations . | . . . Robots Disrupted . | . . . Combat Hostiles . | . . . Robots Corrupted . | . . . Combat Hostiles . | . . . Parts Fried . | . . . Impact Corruptions . | . . . Robots Melted . | . . . Combat Hostiles . | . . . Parts Melted 2 | . . 2 Heat Transferred 1271 | . . 1271 Parts Sabotaged . | . . . Parts Stolen . | . . . Parts Stripped . | . . . Power Chain Reactions . | . . . Alert | -11 -10 -10 ------- Run | Yrd Mat Sub Maximum Alert Level . | . . . Low Security (%) 100 | 100 100 . Level 1 . | . . . Level 2 . | . . . Level 3 . | . . . Level 4 . | . . . Level 5 . | . . . High Security . | . . . Max Security . | . . . Peak Influence 82 | 10 82 . Initial . | . . . Average 15 | 1 17 . Influence Increases 264 | 40 224 . Destroy 0b10 Robot/C 160 | . 160 . Destroy 0b10 Robot/NC 50 | 40 10 . Destroy Leader 44 | . 44 . Successful Hack 10 | . 10 . Influence Decreases 264 | 40 224 . Time Decay 254 | 40 214 . Lost Part 10 | . 10 . Squads Dispatched . | . . . Investigation . | . . . Extermination . | . . . Reinforcement . | . . . Assault . | . . . Garrison . | . . . Intercept . | . . . Searches Triggered . | . . . Construction Impeded . | . . . Haulers Reinforced . | . . . Active Scanning Responses . | . . . Cargo Convoy Interrupts . | . . . Stealth | -11 -10 -10 --------- Run | Yrd Mat Sub Distress Signals . | . . . Communications Jammed . | . . . Distress Signals . | . . . Times Spotted 25 | . 13 12 Peak Tracking Total 2 | . 2 2 Tactical Retreats 2 | . 2 . Traps | -11 -10 -10 ------- Run | Yrd Mat Sub Traps Triggered 3 | . . 3 Indirectly . | . . . Trap Hack Attempts . | . . . Triggered . | . . . Disarmed . | . . . Reprogrammed . | . . . Reused . | . . . Traps Extracted . | . . . Installed . | . . . Triggered . | . . . Machines | -11 -10 -10 ---------- Run | Yrd Mat Sub Machines Disabled . | . . . Max in Single Turn . | . . . Machines Repaired . | . . . Machines Dismantled . | . . . Machines Sabotaged . | . . . Overloaded Fab Kills . | . . . Hacking | -11 -10 -10 --------- Run | Yrd Mat Sub Machines Accessed 3 | . 3 . Terminals 3 | . 3 . Fabricators . | . . . Repair Stations . | . . . Recycling Units . | . . . Scanalyzers . | . . . Garrison Access . | . . . Total Hacks 6 | . 6 . Successful 3 | . 3 . Failed 3 | . 3 . Catastrophic . | . . . Database Lockouts . | . . . Manual 6 | . 6 . Terminals 6 | . 6 . Fabricators . | . . . Repair Stations . | . . . Recycling Units . | . . . Scanalyzers . | . . . Garrison Access . | . . . Terminal Hacks 1 | . 1 . Zone Layout 1 | . 1 . Fabricator Hacks . | . . . Repair Station Hacks . | . . . Recycling Unit Hacks . | . . . Scanalyzer . | . . . Garrison Access Hacks . | . . . Unauthorized Hacks 2 | . 2 . Terminals 2 | . 2 . Botnet 2 | . 2 . Fabricators . | . . . Repair Stations . | . . . Recycling Units . | . . . Scanalyzers . | . . . Garrison Access . | . . . Data Cores Recovered . | . . . Used . | . . . Hacking Detections 2 | . 2 . Full Trace Events . | . . . Feedback Events . | . . . Feedback Blocked . | . . . Robot Schematics Acquired . | . . . Robots Built . | . . . Authchips . | . . . Time . | . . . Total Robot Build Rating . | . . . Part Schematics Acquired . | . . . Parts Built . | . . . Authchips . | . . . Time . | . . . Total Part Build Rating . | . . . Parts Repaired . | . . . Time . | . . . Parts Recycled . | . . . Recycled Matter . | . . . Retrieved Matter . | . . . Retrieved Components . | . . . Parts Scanalyzed . | . . . Part Schematics Acquired . | . . . Parts Damaged . | . . . Bothacking | -11 -10 -10 ------------ Run | Yrd Mat Sub Used RIF Installer . | . . . Robots Hacked . | . . . Non-combat . | . . . Combat . | . . . Robot Hacks Applied . | . . . Relay Couplers Released . | . . . Fabnet Peak Effective % . | . . . Robots Rewired . | . . . Allies Hacked . | . . . Hacks Repelled . | . . . Allies | -11 -10 -10 -------- Run | Yrd Mat Sub Total Allies . | . . . Largest Group . | . . . Highest-Rated Group . | . . . Highest-Rated Ally . | . . . Total Orders . | . . . Ally Attacks . | . . . Total Damage . | . . . Kills . | . . . Allies Corrupted . | . . . Allies Melted . | . . . Intel | -11 -10 -10 ------- Run | Yrd Mat Sub Active Infowar (turns) 2219 | 139 1257 823 Optics 689 | . . 689 Seismic 1530 | 139 1257 134 Robot Analysis Total . | . . . Derelict Logs Recovered 1 | . . 1 Drone Launches . | . . . Drone Recoveries . | . . . Exploration | -11 -10 -10 ------------- Run | Yrd Mat Sub Turns Passed 3519 | 227 1261 2031 Spaces Moved 1716 | 97 537 1082 Core 85 | 6 . 79 Treads 499 | 91 407 1 Legs 410 | . 130 280 Wheels 722 | . . 722 Hover . | . . . Flight . | . . . Fastest Speed 50 | 50 160 110 Average Speed 169 | 154 170 170 Slowest Speed 600 | 160 260 600 Overloaded Moves . | . . . Propulsion Burnouts . | . . . Robots Hopped . | . . . Potential Cave-ins . | . . . Cave-ins Triggered . | . . . Exploration Rate (%) 32 | 5 48 45 Regions Visited 2 Branch Regions 1 Pre-discovered Areas 1 | . . 1 Known Exits Taken . | . . . Unknown Exits Taken 2 | 1 1 . Scrap Searched 8 | . . 8 Spaces Dug . | . . . Terrain Destroyed 2 | . . 2 Melee . | . . . Projectile 2 | . . 2 AOE . | . . . Terrain Rammed . | . . . Walls Destroyed . | . . . Machines Disabled . | . . . Actions | -11 -10 -10 --------- Run | Yrd Mat Sub Total 2136 | 129 829 1178 Wait 231 | . 228 3 Move 1714 | 96 536 1082 Hop . | . . . Pick Up 31 | 4 15 12 Fast Attach 17 | 7 2 8 Attach 6 | . 1 5 Detach 2 | . 2 . Swap 10 | . 4 6 Drop 23 | 1 7 15 Fire 95 | 21 27 47 Melee . | . . . Ram . | . . . Kick . | . . . Crush 7 | . 7 . Escape Stasis . | . . . Rewire . | . . . Trap . | . . . Miscellaneous . | . . . Route ------- -11/Scrapyard -10/Materials (discovered 3 exits: [*Mat] / [*Min] / [*Sub]) -10/Subcaves History --------- Turn | Location | Event 45 | -11/Scrapyard | Discovered new exit (range 14) 228 | -11/Scrapyard | Entered Materials 305 | -10/Materials | Build established: Mutant 383 | -10/Materials | Discovered new exit (range 6) 772 | -10/Materials | Discovered new exit (range 15) 928 | -10/Materials | Derelicts attacked the area 1166 | -10/Materials | Discovered new exit (range 14) 1489 | -10/Materials | Entered Subcaves 1490 | -10/Subcaves | Approached by a straggling Scientist 1495 | -10/Subcaves | Learned Materials terminal intel 1858 | -10/Subcaves | Core integrity fell below 50% 2105 | -10/Subcaves | Lost 4 parts (1n1u2w) 2329 | -10/Subcaves | Core integrity fell below 20% 2410 | -10/Subcaves | Build established: Scavenger-Mutant 2492 | -10/Subcaves | Disturbed a concealed Subdweller 2980 | -10/Subcaves | Learned location of Zion (-7) 2980 | -10/Subcaves | Met a Zionite searching for "candidates" 3520 | -10/Subcaves | Destroyed by M2-CN3(R) with Subdweller Beam Cannon Last Messages --------------- 02759_ Subatomizers dissect the Imp. Aluminum Leg. 02774_ Acquired 3 matter. 02787_ Acquired 7 matter. 02894_ Acquired Sub. Laser. 02979_ FE-MBY(z): "She is not going to be happy we haven't found any suitable candidates yet." 02980_ FE-MBY(z): "Hey you! It's really dangerous down here, I feel that you could die at any moment. For your health and safety might I suggest a trip to Zion?" World map updated: -7/Zion. 02988_ Dropped Sub. Shrapnel Launcher. 02989_ Acquired Sub. Shrapnel Launcher. 02996_ Sub. Optics shoots sparks and powers down. 03041_ Sub. Monowheel shoots sparks and powers down. 03505_ Lgt. Nuclear Core destroyed. M2-CN3(R) emerges from concealment. Map ----- +----------------------------------------------------+ | | | | | | | ?????????????????????????????????????????????????? | | ?????????????????????????????????????????????????? | | ?????????????????????????????????????????????????? | | ?????????????????????????????????????????????????? | | ?????????????????????????????????????????????????? | | ?????????????????????????????????????????????????? | | ??????????#??????????????????????????????????????? | | ??????????#"?????????????????????????????????????? | | ??????????? "????????????????????????????????????? | | ????????????" ???????????????????????????????????? | | ???????????? " ?######???????????????????????????? | | ?????????????? # #???????????????????????????? | | ???????????????? ##??????????????????#######??? | | ????????????????## "#??????????????????#!%#]!#??? | | ??????????###?###" "###????????????????#%] [%#??? | | ########### ### " #######??????????##"&###??# | | # # # ####???????###]%#??## | | ########## ######### #&##### | | ## ##????#### # "[" ## | | # ## ##???# ### =&% # | | ### ##### ### ### ### ### | | # # # ## ## ###### #?## | | #### #### @ #???## ##?# | | ???## # ######## #????# #?# ## | | ???# #### # ## ######???? ### ## | | ???## ##* R ##????????? ## #? | | ???# R ####?????????# # ##? | | ???# # ####?####??##### ######?? | | ???## ###### #????# #??# ##??????? | | ????## ##???## #????# #### # # # ##??####??# | | ?????## ##???###????# ## #?#####???## #### | | ??????## #??????????# # ### ####### | | ??????## ##?????###### #!% | | ???#### ##??????#[%## #### | | ???# ! ##???????#%!"##" ## ##### # ##?## | | ???# ##????????##& &[[ ####???######??# | | ???# #?????????#!]#%#" #??????????????# | | ???# ##??#######]%###[ #??????????????# | | ???## #?## # ##### [ #??????????????## | | ???# ### """" ## #???????????????# | | ??## ### ** & """" ##### #??????????????# | | ??# # ## # ## ## #???## #?????????????# | | ??# # #### ## "#?????# ????????????## | | ??# # *%! #### #??????# ???????????# | | ?##### &%& ##??????? #??????????# | | # #??####[# " ##???????? #?????????# # | | ?????##### " #???????? ????????### | +----------------------------------------------------+ Best States ------------- Heat Dissipation 25 Energy Generation 14 Energy Capacity 250 Matter Stores 300 Matter Capacity 300 Sight Range 21 Terrain Scan Density 10 Armor Coverage 225 Evasion (%) 40 Recoil Reduction 2 Item Schematics ----------------- None Robot Schematics ------------------ None Fabricated ------------ Nothing Repaired ---------- Nothing Alien Tech Used ----------------- None Achievements -------------- True Hacker Challenges ------------ None Game ------ Seed ReflectiveProjectileScreen Manual? 0 Play Time 00:30:49 Cumulative 18.7 hours Start 2025.05.18 @ 17:58:48 End 2025.05.18 @ 18:28:34 Sessions 1 Manual Loads 0 Difficulty Rogue Special Mode None Game No. 26 Rogue 26 Adventurer 0 Explorer 0 Win Type - Total 0 Types 0/0/0/0/0/0/0/0/0/0 Lore% 21 Gallery% 17 Achievement% 16 Wizard Run 0 Options --------- Layout 1 ASCII 0 Keyboard 1 Movement Vi Keybinds 0 Fullscreen 1 Font 24/Smallcaps Map View 50x35 Zoom Use 0% Tactical HUD 1 Map Filters NONE Filters NONE Steam 1 RUN: 1237df60-eb6e-4631-9197-f13866c43d9e